bitfinex-derivatives/quotes_BTCF0:USTF0_20250406
["timestamp","ask_amount","ask_price","bid_price","bid_amount"]
[1743972329111,0.18324,79176.0,79175.0,0.18268]
[1743972329313,0.18324,79176.0,79175.0,0.36958]
[1743972329620,0.28324,79176.0,79175.0,0.18268]
[1743972329809,0.28324,79176.0,79175.0,0.00068]
[1743972330014,0.40954169,79176.0,79174.0,0.00707358]
[1743972330219,0.1914,79175.0,79174.0,0.00707358]
[1743972330415,0.19208,79175.0,79174.0,0.00707358]
[1743972330618,0.38908,79175.0,79174.0,0.00707358]
[1743972330828,0.00068,79175.0,79165.0,0.30485049]
[1743972331016,0.3608,79184.0,79172.0,0.3608]
[1743972331212,0.00084,79184.0,79179.0,0.3608]
[1743972331519,0.00018941,79185.0,79180.0,0.3825]
[1743972331718,0.001,79199.0,79182.0,0.3608]
[1743972331915,0.3608,79213.0,79193.0,0.3608]
[1743972332118,0.36184001,79213.0,79203.0,0.34824541]
[1743972332324,0.36184001,79213.0,79204.0,0.3825]
[1743972332514,0.36184001,79213.0,79204.0,0.38362]
[1743972332818,0.32325784,79212.0,79205.0,0.3608]
[1743972333022,0.0259,79210.0,79205.0,0.36184]
[1743972333213,0.00104001,79210.0,79206.0,0.379]
[1743972333520,0.1,79208.0,79206.0,0.38012]
[1743972333718,0.00104001,79208.0,79206.0,0.38012]
[1743972333921,0.00104001,79208.0,79206.0,0.31709691]
[1743972334119,0.00104001,79208.0,79206.0,0.19522]
[1743972334120,0.12625067,79207.0,79206.0,0.19522]
[1743972334321,0.50777067,79207.0,79201.0,0.00018941]
[1743972334514,0.3873,79202.0,79201.0,0.00018941]
[1743972334715,0.46144,79202.0,79184.0,0.1798]
[1743972335023,0.0265,79186.0,79184.0,0.18084]
[1743972335221,0.1977,79185.0,79184.0,0.18084]
[1743972335425,0.2242,79185.0,79184.0,0.00104]
[1743972335726,0.50708654,79185.0,79184.0,0.00104]
[1743972336114,0.1977,79185.0,79184.0,0.00104]
[1743972336809,0.3027,79185.0,79184.0,0.00104]
[1743972337020,0.3027,79185.0,79176.0,0.191]
[1743972337224,0.3027,79185.0,79176.0,0.3823]
[1743972337423,0.005,79185.0,79176.0,0.3823]
[1743972337724,0.005,79185.0,79181.0,0.3608]
[1743972337923,0.00018941,79192.0,79182.0,0.1913]
[1743972338217,0.00018941,79192.0,79182.0,0.73054541]
[1743972338423,0.12629372,79191.0,79182.0,0.73054541]
[1743972338614,0.1,79186.0,79182.0,0.73054541]
[1743972338819,0.1963,79185.0,79182.0,0.73054541]
[1743972339321,0.2013,79185.0,79182.0,0.73054541]
[1743972339716,0.005,79185.0,79182.0,0.73054541]
[1743972339920,0.005,79185.0,79182.0,0.66752232]
[1743972340126,0.3666,79185.0,79182.0,0.66832232]
[1743972340429,0.1,79183.0,79182.0,0.0008]
[1743972340617,0.10072,79183.0,79175.0,0.1987]
[1743972340818,0.1827,79182.0,79175.0,0.19946]
[1743972341017,0.3608,79176.0,79175.0,0.00076]
[1743972341320,0.4608,79176.0,79175.0,0.00076]
[1743972341735,0.58778169,79176.0,79174.0,0.00107358]
[1743972342024,0.1827,79175.0,79174.0,0.00107358]
[1743972342430,0.4608,79176.0,79174.0,0.00107358]
[1743972342613,0.3608,79178.0,79174.0,0.00107358]
[1743972342812,0.0295,79176.0,79174.0,0.00107358]
[1743972343119,0.1,79173.0,79165.0,0.29885049]
[1743972343321,0.003,79176.0,79166.0,0.195]
[1743972343522,0.3608,79187.0,79175.0,0.3608]
[1743972343725,0.3608,79187.0,79177.0,0.34824541]
[1743972344119,0.3969854,79187.0,79177.0,0.34824541]
[1743972344319,0.3608,79178.0,79176.0,0.195]
[1743972345733,0.3876,79177.0,79170.0,0.34824541]
[1743972345931,0.5397993,79177.0,79166.0,0.12547691]
[1743972346126,0.3608,79167.0,79160.0,0.1878]
[1743972346322,0.3876,79166.0,79160.0,0.1878]
[1743972346724,0.38836,79166.0,79160.0,0.18856]
[1743972346931,0.1,79161.0,79160.0,0.18856]
[1743972347130,0.10076,79161.0,79160.0,0.18856]
[1743972347339,0.00076,79161.0,79160.0,0.18856]
[1743972347632,0.10076,79161.0,79160.0,0.18856]
[1743972348824,0.00076,79161.0,79160.0,0.18856]
[1743972349026,0.10076,79161.0,79160.0,0.12553691]
[1743972349227,0.10376,79161.0,79160.0,0.12553691]
[1743972349532,0.00376,79161.0,79160.0,0.12553691]
[1743972349729,0.10376,79161.0,79160.0,0.12553691]
[1743972350333,0.00376,79161.0,79160.0,0.12553691]
[1743972350523,0.10376,79161.0,79160.0,0.12553691]
[1743972350827,0.02966,79161.0,79160.0,0.12553691]
[1743972351031,0.10376,79161.0,79160.0,0.12553691]
[1743972352131,0.00376,79161.0,79160.0,0.21251382]
[1743972352334,0.00018941,79171.0,79160.0,0.21251382]
[1743972352633,0.3608,79170.0,79161.0,0.34824541]
[1743972352832,0.1,79168.0,79161.0,0.34920541]
[1743972353036,0.1,79165.0,79161.0,0.34920541]
[1743972353336,0.1,79162.0,79161.0,0.34920541]
[1743972353530,0.1,79162.0,79161.0,0.00096]
[1743972354119,0.1,79167.0,79161.0,0.00096]
[1743972354328,0.00018941,79171.0,79165.0,0.3608]
[1743972354528,0.00018941,79171.0,79165.0,0.36176]
[1743972355029,0.00018941,79171.0,79161.0,0.28618232]
[1743972355030,0.1,79168.0,79161.0,0.28618232]
[1743972355224,0.1,79163.0,79162.0,0.1989]
[1743972355430,0.1,79163.0,79162.0,0.29990452]
[1743972355824,0.15,79163.0,79162.0,0.29990452]
[1743972356124,0.15,79163.0,79162.0,0.29041733]
[1743972356632,0.5108,79163.0,79162.0,0.29041733]
[1743972356821,0.5138,79163.0,79162.0,0.29041733]
[1743972358144,0.5138,79163.0,79162.0,0.22739424]
[1743972358435,0.5138,79163.0,79158.0,1.51391379]
[1743972358627,0.3638,79163.0,79160.0,0.3678]
[1743972358829,0.00018941,79171.0,79162.0,0.3608]
[1743972359125,0.00018941,79171.0,79170.0,0.3608]
[1743972359330,0.0096854,79187.0,79170.0,0.3608]
[1743972359530,0.1863,79186.0,79182.0,0.3608]
[1743972359731,0.1971,79186.0,79182.0,0.3608]
[1743972360136,0.0096854,79187.0,79182.0,0.3608]
[1743972360328,0.186,79195.0,79182.0,0.3616]
[1743972360530,0.00018941,79190.0,79182.0,0.3616]
[1743972360842,0.186,79195.0,79182.0,0.3616]
[1743972360843,0.3608,79220.0,79189.0,0.3608]
[1743972361036,0.05,79201.0,79196.0,0.3608]
[1743972361235,0.1,79197.0,79196.0,0.29777691]
[1743972361437,0.00092,79201.0,79196.0,0.29865691]
[1743972361634,0.3608,79213.0,79197.0,0.1855]
[1743972361933,0.1,79210.0,79203.0,0.70904541]
[1743972362141,0.00018941,79213.0,79203.0,1.06984541]
[1743972362440,0.00018941,79213.0,79211.0,0.3608]
[1743972363130,0.3608,79256.0,79212.0,1.80775557]
[1743972363439,0.3608,79256.0,79237.0,0.34824541]
[1743972363625,0.0132,79247.0,79237.0,0.34824541]
[1743972363829,0.1886,79246.0,79237.0,0.34824541]
[1743972364231,0.04555754,79246.0,79237.0,0.28522232]
[1743972364434,0.001,79247.0,79240.0,0.3608]
[1743972364638,0.001,79247.0,79237.0,0.28522232]
[1743972364639,0.19818167,79246.0,79237.0,0.28522232]
[1743972364843,0.3608,79245.0,79234.0,0.00018929]
[1743972365025,0.0259,79239.0,79234.0,0.00018929]
[1743972365340,0.0524,79240.0,79234.0,0.00018929]
[1743972365538,0.1,79243.0,79234.0,0.00018929]
[1743972365835,0.001,79247.0,79241.0,0.3608]
[1743972366043,0.04513888,79266.0,79246.0,0.3608]
[1743972366343,0.1,79260.0,79253.0,0.34824541]
[1743972366638,0.1,79256.0,79253.0,0.34916541]
[1743972366842,0.1,79254.0,79253.0,0.34916541]
[1743972367041,0.10088001,79254.0,79253.0,0.36172]
[1743972367334,0.10088001,79254.0,79253.0,0.29869691]
[1743972367538,0.02678001,79254.0,79253.0,0.29933691]
[1743972367732,0.10088001,79254.0,79253.0,0.29933691]
[1743972368139,0.15088001,79254.0,79253.0,0.29933691]
[1743972368334,0.001,79263.0,79253.0,0.29933691]
[1743972368542,0.001,79263.0,79261.0,0.3608]
[1743972368737,0.001,79263.0,79261.0,0.36176]
[1743972369438,0.48697739,79262.0,79261.0,0.00096]
[1743972369641,0.70769739,79262.0,79253.0,0.34824541]
[1743972369839,0.3608,79254.0,79253.0,0.00088]
[1743972370141,0.4367,79254.0,79253.0,0.00088]
[1743972370444,0.1,79247.0,79246.0,0.00018929]
[1743972370637,0.0265,79247.0,79246.0,0.00018929]
[1743972371041,0.0259,79247.0,79246.0,0.00018929]
[1743972371244,0.1,79247.0,79246.0,0.00018929]
[1743972371435,0.5549,79253.0,79246.0,0.00018929]
[1743972371635,0.1,79252.0,79246.0,0.00018929]
[1743972371842,0.1,79260.0,79247.0,0.3608]
[1743972372042,0.05,79257.0,79256.0,0.3608]
[1743972372244,0.001,79263.0,79256.0,0.3608]
[1743972372746,0.101,79263.0,79256.0,0.3608]
[1743972372949,0.1894,79262.0,79256.0,0.3608]
[1743972373140,0.34207261,79262.0,79256.0,0.3608]
[1743972373335,0.34207261,79262.0,79247.0,0.3608]
[1743972373336,0.3608,79257.0,79246.0,0.00018929]
[1743972373647,0.1,79249.0,79246.0,0.00018929]
[1743972373942,0.1894,79248.0,79246.0,0.00018929]
[1743972374145,0.005,79252.0,79246.0,0.00018929]
[1743972374848,0.0265,79248.0,79246.0,0.00018929]
[1743972375049,0.006,79257.0,79246.0,0.00018929]
[1743972375250,0.1,79248.0,79246.0,0.00082929]
[1743972375543,0.1972,79247.0,79246.0,0.00082929]
[1743972375749,0.22374,79247.0,79246.0,0.00082929]
[1743972375945,0.47402057,79247.0,79246.0,0.00018929]
[1743972376248,0.24784,79247.0,79246.0,0.00018929]
[1743972376553,0.00064,79247.0,79246.0,0.2979662]
[1743972376848,0.005,79252.0,79246.0,0.36152]
[1743972377049,0.1954,79251.0,79246.0,0.36152]
[1743972377348,0.22194,79251.0,79247.0,0.1805]
[1743972377540,0.1972,79250.0,79247.0,0.36748]
[1743972377740,0.19784,79250.0,79247.0,0.36748]
[1743972377940,0.00064,79250.0,79247.0,0.36748]
[1743972378149,0.1954,79251.0,79247.0,0.36748]
[1743972378345,0.00064,79251.0,79247.0,0.36748]
[1743972378543,0.005,79252.0,79247.0,0.36748]
[1743972379040,0.001,79263.0,79247.0,0.51748]
[1743972379343,0.001,79263.0,79257.0,0.29777691]
[1743972379650,0.1998,79263.0,79258.0,0.3826]
[1743972379850,0.1998,79263.0,79258.0,0.38332]
[1743972381055,0.3608,79274.0,79258.0,0.38432]
[1743972381350,0.00094929,79270.0,79264.0,0.3608]
[1743972381546,0.00094929,79270.0,79265.0,0.3865]
[1743972381747,0.1,79268.0,79265.0,0.3865]
[1743972381950,0.00094929,79270.0,79258.0,0.001]
[1743972381951,0.897,79267.0,79259.0,0.00018929]
[1743972382145,0.5108,79260.0,79259.0,0.00018929]
[1743972382344,0.5108,79260.0,79240.0,0.28522232]
[1743972382546,0.0259,79243.0,79240.0,0.34824541]
[1743972382745,0.3862,79242.0,79240.0,0.34888541]
[1743972383054,0.3862,79242.0,79240.0,0.34824541]
[1743972383450,0.4862,79242.0,79240.0,0.34824541]
[1743972383652,0.3862,79242.0,79240.0,0.34824541]
[1743972383846,0.897,79242.0,79233.0,0.36098929]
[1743972384047,0.898,79242.0,79233.0,0.36098929]
[1743972384349,0.898,79242.0,79233.0,0.00018929]
[1743972384350,0.12619729,79241.0,79233.0,0.00018929]
[1743972384553,0.1,79241.0,79233.0,0.00018929]
[1743972384854,0.0259,79239.0,79234.0,0.186]
[1743972385055,0.1896,79240.0,79234.0,0.186]
[1743972385256,0.03781191,79241.0,79237.0,0.3608]
[1743972385453,0.001,79242.0,79239.0,0.31387691]
[1743972385647,0.1896,79241.0,79237.0,0.3608]
[1743972385853,0.2396,79241.0,79238.0,0.00207271]
[1743972386054,0.2655,79241.0,79238.0,0.00207271]
[1743972386253,0.2396,79241.0,79238.0,0.00207271]
[1743972386555,0.001,79242.0,79238.0,0.00207271]
[1743972386754,0.002,79242.0,79239.0,0.1909]
[1743972386945,0.1896,79241.0,79239.0,0.1909]
[1743972387346,0.1807,79248.0,79239.0,0.1909]
[1743972387556,0.003,79241.0,79239.0,0.1909]
[1743972387746,0.18178,79248.0,79239.0,0.19154]
[1743972388059,0.00216,79248.0,79246.0,0.3608]
[1743972388355,0.00108,79248.0,79247.0,0.1843]
[1743972388657,0.1821,79247.0,79246.0,0.29777691]
[1743972388857,0.18318,79247.0,79246.0,0.00108]
[1743972389164,0.00108,79247.0,79244.0,0.3608]
[1743972389350,0.00108,79247.0,79245.0,0.1821]
[1743972389552,0.00108,79247.0,79245.0,0.36712]
[1743972391257,0.00108,79247.0,79246.0,0.1904]
[1743972391455,0.00108,79247.0,79246.0,0.12737691]
[1743972391651,0.00108,79247.0,79238.0,0.00107271]
[1743972391854,0.4031,79246.0,79238.0,0.19187271]
[1743972392047,0.52828,79246.0,79238.0,0.00107271]
[1743972392255,0.1,79245.0,79238.0,0.00107271]
[1743972392560,0.3772,79246.0,79238.0,0.00107271]
[1743972392751,0.3772,79244.0,79238.0,0.00107271]
[1743972393148,0.00018929,79249.0,79238.0,0.00107271]
[1743972393149,0.05,79246.0,79238.0,0.00107271]
[1743972393351,0.3772,79248.0,79238.0,0.00107271]
[1743972393553,0.4608,79241.0,79238.0,0.00107271]
[1743972393859,0.1815,79240.0,79223.0,0.37500523]
[1743972394060,0.3608,79224.0,79223.0,0.37500523]
[1743972394261,0.1,79224.0,79223.0,0.37500523]
[1743972394661,0.3608,79233.0,79223.0,0.67658214]
[1743972394862,0.0259,79229.0,79223.0,1.02482755]
[1743972395063,0.1,79225.0,79223.0,0.66086755]
[1743972395258,0.00018929,79236.0,79223.0,0.66086755]
[1743972395452,0.05,79234.0,79230.0,0.3608]
[1743972395653,0.05108,79234.0,79231.0,0.3646]
[1743972395853,0.1805,79240.0,79231.0,0.36528]
[1743972396053,0.18126,79240.0,79235.0,0.3608]
[1743972396264,0.1805,79240.0,79236.0,0.1814]
[1743972396559,0.21704275,79240.0,79236.0,0.00068]
[1743972396755,0.0259,79238.0,79230.0,0.22666138]
[1743972396956,0.05,79234.0,79230.0,0.22734138]
[1743972397156,0.1875,79233.0,79230.0,0.22734138]
[1743972397359,0.38516,79233.0,79230.0,0.22734138]
[1743972397552,0.41106,79233.0,79230.0,0.16431829]
[1743972397748,0.38516,79233.0,79230.0,0.16431829]
[1743972398369,0.19766,79233.0,79231.0,0.3664]
[1743972398662,0.3844,79245.0,79231.0,0.36704]
[1743972398957,0.0265,79241.0,79235.0,0.34824541]
[1743972399162,0.0265,79238.0,79235.0,0.34896541]
[1743972399463,0.3608,79236.0,79235.0,0.00072]
[1743972399757,0.4616,79236.0,79230.0,1.37665829]
[1743972399960,0.4367,79232.0,79230.0,1.37729829]
[1743972400256,0.1959,79231.0,79230.0,1.07779829]
[1743972400464,0.19662,79231.0,79230.0,1.07779829]
[1743972400665,0.57282446,79231.0,79220.0,0.00018929]
[1743972400855,0.05,79217.0,79215.0,0.44395164]
[1743972401055,0.4608,79216.0,79215.0,0.44463164]
[1743972401256,0.4618,79216.0,79215.0,0.44463164]
[1743972401458,0.4618,79216.0,79215.0,0.00068]
[1743972402058,0.3618,79216.0,79215.0,0.00068]
[1743972402459,0.4618,79216.0,79215.0,0.00068]
[1743972403066,0.4377,79216.0,79215.0,0.00068]
[1743972403265,0.4377,79216.0,79200.0,0.34824541]
[1743972403266,0.78803792,79216.0,79206.0,0.00058243]
[1743972403568,0.3608,79207.0,79206.0,0.00122243]
[1743972403863,0.3608,79207.0,79206.0,0.00068]
[1743972403864,0.51192001,79207.0,79206.0,0.00068]
[1743972404068,0.43782001,79207.0,79206.0,0.00068]
[1743972404251,0.7140651,79207.0,79190.0,0.34931877]
[1743972404457,0.4748,79197.0,79195.0,1.5132]
[1743972404666,0.5637,79196.0,79174.0,0.00107358]
[1743972404965,0.3608,79175.0,79174.0,0.00175358]
[1743972405259,0.43822,79175.0,79174.0,0.00107358]
[1743972405662,0.63862329,79175.0,79174.0,0.00107358]
[1743972406355,0.67658977,79175.0,79174.0,0.00107358]
[1743972406756,0.0259,79162.0,79160.0,0.34824541]
[1743972406969,0.56,79161.0,79160.0,0.34824541]
[1743972407172,0.71,79161.0,79158.0,0.00107379]
[1743972407362,0.1983,79160.0,79158.0,0.00107379]
[1743972407564,0.2631,79160.0,79158.0,0.00107379]
[1743972407866,0.1999,79160.0,79158.0,0.00107379]
[1743972408268,0.2492,79159.0,79158.0,0.00107379]
[1743972408475,0.3492,79159.0,79158.0,0.00107379]
[1743972408768,0.35072,79159.0,79158.0,0.00107379]
[1743972409173,0.35072,79159.0,79158.0,0.00507379]
[1743972409359,0.25072,79159.0,79158.0,0.00507379]
[1743972409557,0.00152,79159.0,79158.0,0.00507379]
[1743972409769,0.00152,79159.0,79153.0,1.4548107]
[1743972409963,0.3608,79170.0,79158.0,0.3608]
[1743972410177,0.05,79169.0,79160.0,0.34824541]
[1743972410356,0.00018943,79164.0,79161.0,0.1915]
[1743972410561,0.3608,79180.0,79161.0,0.1915]
[1743972410865,0.3705,79190.0,79170.0,0.3608]
[1743972411067,0.13902429,79183.0,79171.0,0.387]
[1743972411270,0.01033455,79183.0,79171.0,0.387]
[1743972411461,0.001,79183.0,79171.0,0.387]
[1743972411662,0.001,79183.0,79177.0,0.3598]
[1743972411868,0.001,79183.0,79178.0,0.387]
[1743972412071,0.01059532,79183.0,79178.0,0.387]
[1743972412273,0.1893,79182.0,79178.0,0.387]
[1743972412464,0.2074,79181.0,79178.0,0.1955]
[1743972412672,0.1815,79181.0,79178.0,0.1955]
[1743972412972,0.1893,79180.0,79178.0,0.13247691]
[1743972413169,0.004,79183.0,79179.0,0.1922]
[1743972413371,0.00934052,79191.0,79179.0,0.1922]
[1743972413569,0.3608,79189.0,79181.0,0.34824541]
[1743972413769,0.3608,79198.0,79181.0,0.34824541]
[1743972413974,0.003,79183.0,79181.0,0.34824541]
[1743972414272,0.3608,79214.0,79182.0,0.553]
[1743972414470,0.001,79204.0,79197.0,0.3608]
[1743972414669,0.001,79204.0,79198.0,0.1922]
[1743972414974,0.01054727,79204.0,79198.0,0.1922]
[1743972415175,0.001,79204.0,79198.0,0.19284]
[1743972415371,0.1,79204.0,79198.0,0.19284]
[1743972415672,0.3687,79203.0,79198.0,0.19284]
[1743972415871,0.00108,79203.0,79198.0,0.12981691]
[1743972416067,0.001,79204.0,79199.0,0.1959]
[1743972416263,0.001,79204.0,79200.0,0.3608]
[1743972416571,0.001,79204.0,79200.0,0.36144]
[1743972416768,0.0524,79203.0,79201.0,0.1959]
[1743972416972,0.73054001,79203.0,79201.0,0.00108]
[1743972417172,0.80644001,79203.0,79194.0,0.34824541]
[1743972417378,0.1,79200.0,79194.0,0.34932541]
[1743972417574,0.3608,79196.0,79194.0,0.34932541]
[1743972417777,0.00104001,79196.0,79195.0,0.3608]
[1743972417969,0.00104001,79196.0,79195.0,0.55734]
[1743972418165,0.1973,79205.0,79195.0,0.55734]
[1743972418365,0.001,79204.0,79195.0,0.55734]
[1743972418665,0.18384001,79204.0,79195.0,0.55734]
[1743972418972,0.18384001,79204.0,79195.0,0.49431691]
[1743972419172,0.18384001,79204.0,79196.0,0.1839]
[1743972419369,0.2973,79203.0,79196.0,0.18454]
[1743972419571,0.0524,79201.0,79196.0,0.00064]
[1743972419873,0.3608,79197.0,79196.0,0.00064]
[1743972420073,0.38774001,79197.0,79196.0,0.00064]
[1743972420271,0.99094001,79197.0,79190.0,0.00126279]
[1743972420577,0.3608,79191.0,79170.0,0.34824541]
[1743972420767,0.3608,79175.0,79160.0,0.34824541]
[1743972420970,0.36208,79175.0,79156.0,0.3608]
[1743972421169,0.3608,79163.0,79150.0,0.53214541]
[1743972421467,0.4334,79162.0,79150.0,0.54194541]
[1743972421778,0.4334,79162.0,79153.0,1.45500013]
[1743972421970,0.3834,79162.0,79153.0,1.75385083]
[1743972422165,0.3834,79162.0,79153.0,1.39305083]
[1743972422367,0.3608,79156.0,79153.0,1.39305083]
[1743972422667,0.4334,79155.0,79153.0,0.00018943]
[1743972422873,0.4334,79155.0,79132.0,0.3608]
[1743972423069,0.3608,79152.0,79130.0,0.34824541]
[1743972423272,0.1899,79151.0,79140.0,0.34824541]
[1743972423473,0.2399,79151.0,79140.0,0.34824541]
[1743972423773,0.3608,79144.0,79140.0,0.34824541]
[1743972423974,0.1899,79143.0,79140.0,0.34824541]
[1743972424375,0.31624238,79143.0,79130.0,0.34824541]
[1743972424569,0.46748239,79143.0,79126.0,0.00107423]
[1743972424772,0.4108,79127.0,79126.0,0.00107423]
[1743972424969,0.4108,79127.0,79120.0,0.28629655]
[1743972425271,0.05,79121.0,79120.0,0.28629655]
[1743972425476,0.3608,79130.0,79115.0,0.3608]
[1743972425779,0.05,79129.0,79123.0,0.3608]
[1743972425978,0.00018955,79131.0,79124.0,0.3738]
[1743972426479,0.1,79128.0,79124.0,0.3738]
[1743972426667,0.1808,79127.0,79124.0,0.3738]
[1743972426974,0.05,79126.0,79121.0,0.34824541]
[1743972427276,0.0265,79123.0,79121.0,0.34824541]
[1743972427466,0.1855,79122.0,79121.0,0.34824541]
[1743972427664,0.1855,79122.0,79121.0,0.53714541]
[1743972427970,0.1855,79122.0,79121.0,0.1889]
[1743972428171,0.1979,79125.0,79121.0,0.1889]
[1743972428483,0.3608,79130.0,79121.0,0.1909]
[1743972428670,0.3608,79130.0,79122.0,0.197]
[1743972428874,0.00018955,79131.0,79122.0,0.197]
[1743972429080,0.0259,79128.0,79122.0,0.197]
[1743972429275,0.0259,79127.0,79122.0,0.197]
[1743972429471,0.3608,79123.0,79121.0,0.35024541]
[1743972429672,0.4334,79122.0,79121.0,0.002]
[1743972429978,0.6610631,79122.0,79121.0,0.003]
[1743972430176,0.77282118,79122.0,79110.0,0.00107445]
[1743972430482,0.3608,79111.0,79110.0,0.34931986]
[1743972430775,0.3608,79111.0,79110.0,0.00107445]
[1743972430982,0.36204001,79111.0,79101.0,0.46949677]
[1743972431377,0.36204001,79111.0,79102.0,0.1968]
[1743972431577,0.00124001,79111.0,79110.0,0.007]
[1743972431777,0.00018955,79114.0,79110.0,0.007]
[1743972432176,0.00018955,79114.0,79111.0,0.1939]
[1743972432484,0.1,79113.0,79111.0,0.1939]
[1743972432681,0.3663,79112.0,79110.0,0.004]
[1743972432874,0.4187,79112.0,79110.0,0.004]
[1743972433075,0.0259,79111.0,79104.0,0.3608]
[1743972433282,0.05,79107.0,79104.0,0.3608]
[1743972433582,0.00018955,79114.0,79105.0,0.1798]
[1743972433777,0.00018955,79114.0,79110.0,0.003]
[1743972434083,0.00018955,79114.0,79111.0,0.11677691]
[1743972434279,0.00150955,79114.0,79111.0,0.30727691]
[1743972434972,0.00150955,79114.0,79110.0,0.005]
[1743972435179,0.1,79112.0,79110.0,0.005]
[1743972435377,0.1825,79111.0,79106.0,0.1905]
[1743972435580,0.4062,79111.0,79106.0,0.1905]
[1743972435769,0.3797,79111.0,79106.0,0.1905]
[1743972435969,0.0259,79110.0,79104.0,0.71504541]
[1743972436184,0.3608,79108.0,79104.0,0.006]
[1743972436379,0.3608,79106.0,79104.0,0.006]
[1743972436684,0.1842,79105.0,79083.0,0.1995]
[1743972436985,0.53111425,79105.0,79083.0,0.1995]
[1743972437180,0.68235426,79105.0,79080.0,0.34824541]
[1743972437382,0.3608,79083.0,79073.0,0.37528404]
[1743972437578,0.5108,79083.0,79073.0,0.37528404]
[1743972437886,0.4108,79083.0,79073.0,0.37528404]
[1743972438089,0.4108,79083.0,79079.0,0.1995]
[1743972438276,0.5108,79083.0,79079.0,0.1995]
[1743972438590,0.56375022,79083.0,79073.0,0.37528404]
[1743972438883,0.56975022,79083.0,79073.0,0.37528404]
[1743972439086,0.64325022,79083.0,79073.0,0.37528404]
[1743972439387,0.3764,79082.0,79073.0,0.37528404]
[1743972439586,0.3764,79082.0,79074.0,0.1902]
[1743972439787,0.3764,79082.0,79079.0,0.1902]
[1743972440087,0.194,79082.0,79079.0,0.12717691]
[1743972440384,0.2205,79082.0,79067.0,0.3608]
[1743972440684,0.05,79079.0,79070.0,0.34824541]
[1743972441274,0.1824,79081.0,79070.0,0.34824541]
[1743972441582,0.1824,79081.0,79060.0,0.34824541]
[1743972441583,0.12645422,79079.0,79060.0,0.34824541]
[1743972441878,0.0265,79079.0,79060.0,0.34824541]
[1743972442084,0.34035502,79079.0,79060.0,0.34824541]
[1743972442491,0.41521502,79079.0,79060.0,0.34824541]
[1743972442675,0.34171502,79079.0,79060.0,0.34824541]
[1743972442881,0.41521502,79079.0,79060.0,0.34824541]
[1743972443082,0.41521502,79079.0,79060.0,0.2873723]
[1743972443395,0.05,79066.0,79060.0,0.2873723]
[1743972443684,0.3608,79061.0,79050.0,0.3608]
[1743972443883,0.05,79053.0,79051.0,0.1866]
[1743972444083,0.1828,79060.0,79052.0,0.1906]
[1743972444691,0.1988,79059.0,79052.0,0.1906]
[1743972444884,0.1988,79059.0,79050.0,0.70904541]
[1743972445086,0.05,79053.0,79050.0,0.3608]
[1743972445389,0.3699,79052.0,79044.0,0.1906]
[1743972445584,0.4699,79052.0,79044.0,0.1906]
[1743972445783,0.47118,79052.0,79044.0,0.1906]
[1743972446083,0.37118,79052.0,79044.0,0.1906]
[1743972446286,0.37118,79052.0,79043.0,0.1866]
[1743972446287,0.3608,79047.0,79043.0,0.1866]
[1743972446485,0.05,79045.0,79030.0,0.34932094]
[1743972446787,0.3608,79039.0,79030.0,0.00107553]
[1743972446992,0.3608,79032.0,79030.0,0.00107553]
[1743972447291,0.1868,79031.0,79030.0,0.00107553]
[1743972447491,0.00124001,79032.0,79031.0,0.1812]
[1743972447687,0.3608,79049.0,79031.0,0.1812]
[1743972447893,0.3608,79049.0,79042.0,0.3608]
[1743972448096,0.35761174,79049.0,79043.0,0.1812]
[1743972448296,0.35761174,79049.0,79043.0,0.3754]
[1743972448488,0.45761174,79049.0,79043.0,0.3754]
[1743972448988,0.001,79055.0,79043.0,0.3754]
[1743972449184,0.001,79055.0,79049.0,0.29777691]
[1743972449390,0.37016324,79066.0,79050.0,0.3824]
[1743972449582,0.0265,79063.0,79056.0,0.34824541]
[1743972449792,0.1952,79062.0,79057.0,0.3824]
[1743972450295,0.4373,79059.0,79050.0,0.34824541]
[1743972450495,0.1,79052.0,79050.0,0.53104541]
[1743972450789,0.05,79052.0,79050.0,0.53104541]
[1743972450987,0.4108,79059.0,79051.0,0.1996]
[1743972451189,0.3608,79059.0,79051.0,0.3844]
[1743972451388,0.4772,79058.0,79051.0,0.3844]
[1743972451588,0.3772,79058.0,79051.0,0.3844]
[1743972451796,0.03986932,79062.0,79051.0,0.3844]
[1743972451797,0.03386932,79062.0,79056.0,0.3608]
[1743972451991,0.37616324,79066.0,79057.0,0.3968]
[1743972452196,0.3608,79077.0,79065.0,0.29777691]
[1743972452397,0.3608,79077.0,79067.0,0.34824541]
[1743972453192,0.36152,79077.0,79067.0,0.34896541]
[1743972453396,0.39731197,79077.0,79067.0,0.34896541]
[1743972453594,0.1,79073.0,79067.0,0.34896541]
[1743972453788,0.3608,79070.0,79067.0,0.00072]
[1743972453992,0.1806,79069.0,79067.0,0.39752]
[1743972454188,0.18124,79069.0,79067.0,0.00072]
[1743972454389,0.05,79067.0,79064.0,0.0001898]
[1743972454597,0.4608,79065.0,79064.0,0.0001898]
[1743972454784,0.36144,79065.0,79064.0,0.0001898]
[1743972455188,0.36144,79065.0,79064.0,0.3844298]
[1743972455389,0.36144,79065.0,79064.0,0.32140671]
[1743972455885,0.36144,79065.0,79064.0,0.00064]
[1743972456085,0.43794,79065.0,79062.0,0.0010751]
[1743972456287,0.1,79063.0,79062.0,0.0010751]
[1743972456483,0.10068,79063.0,79062.0,0.0010751]
[1743972456689,0.83988,79063.0,79062.0,0.0010751]
[1743972457189,0.89286221,79063.0,79062.0,0.0010751]
[1743972457390,1.04286221,79063.0,79056.0,0.0001898]
[1743972457588,0.5108,79057.0,79056.0,0.0001898]
[1743972457788,0.43794,79057.0,79040.0,0.34824541]
[1743972457997,0.4108,79047.0,79046.0,0.00171532]
[1743972458196,0.36144,79047.0,79046.0,0.00171532]